bitfinex-derivatives/quotes_BTCF0:USTF0_20251215
["timestamp","ask_amount","ask_price","bid_price","bid_amount"]
[1765822622839,0.87701,85921.0,85920.0,0.01831237]
[1765822623038,0.7086493,85917.0,85913.0,0.0116398]
[1765822623235,0.8986493,85917.0,85916.0,0.00017452]
[1765822623943,0.8986493,85917.0,85916.0,0.01871026]
[1765822624645,0.9006493,85917.0,85916.0,0.01871026]
[1765822624847,0.9016493,85917.0,85916.0,0.01871026]
[1765822625845,0.9006493,85917.0,85916.0,0.01871026]
[1765822626048,0.9016493,85917.0,85916.0,0.01871026]
[1765822626542,0.193,85917.0,85916.0,0.68546026]
[1765822626934,0.191,85917.0,85916.0,0.68546026]
[1765822627134,0.193,85917.0,85916.0,0.68546026]
[1765822627350,0.89001,85917.0,85916.0,0.01871026]
[1765822627844,0.88901,85917.0,85916.0,0.01871026]
[1765822628141,0.88901,85917.0,85916.0,0.01971026]
[1765822628543,0.88901,85917.0,85916.0,0.01871026]
[1765822628736,0.88901,85917.0,85916.0,0.01971026]
[1765822628938,0.88701,85917.0,85916.0,0.01971026]
[1765822630048,1.24881,85917.0,85916.0,0.01971026]
[1765822630749,1.24881,85917.0,85916.0,0.01871026]
[1765822631840,0.69701,85901.0,85900.0,0.88239]
[1765822632046,0.88701,85901.0,85900.0,0.88239]
[1765822632746,0.88701,85901.0,85900.0,0.90074741]
[1765822633053,0.88701,85901.0,85900.0,0.99667049]
[1765822633549,0.88701,85901.0,85900.0,0.02035741]
[1765822633744,1.24781,85901.0,85900.0,0.02035741]
[1765822633946,0.7086526,85893.0,85892.0,0.00017452]
[1765822634149,1.6107726,85893.0,85892.0,0.01878297]
[1765822634344,1.6107726,85893.0,85892.0,0.00017452]
[1765822635147,1.6107726,85893.0,85892.0,0.00717452]
[1765822635452,0.52125,85893.0,85892.0,0.69290286]
[1765822635649,0.17,85893.0,85892.0,0.69290286]
[1765822635949,0.52125,85893.0,85892.0,0.69290286]
[1765822636150,0.86701,85893.0,85892.0,0.02615286]
[1765822637249,0.86701,85893.0,85892.0,0.69290286]
[1765822637545,0.17,85893.0,85892.0,0.69290286]
[1765822637745,1.05781,85901.0,85900.0,0.8866416]
[1765822637938,0.86701,85901.0,85900.0,0.8866416]
[1765822638254,0.17,85901.0,85900.0,0.8866416]
[1765822638948,0.86701,85901.0,85900.0,0.8866416]
[1765822639351,0.52125,85901.0,85900.0,0.8876416]
[1765822639855,0.86701,85901.0,85900.0,0.8876416]
[1765822640243,0.17,85901.0,85900.0,0.8876416]
[1765822640444,0.17,85901.0,85900.0,0.8906416]
[1765822640654,0.86701,85901.0,85900.0,0.8906416]
[1765822641046,0.86701,85901.0,85900.0,0.5639616]
[1765822641246,0.86701,85901.0,85900.0,0.004]
[1765822641441,1.22781,85901.0,85900.0,0.004]
[1765822644455,1.22781,85901.0,85900.0,0.34407]
[1765822644650,1.22781,85901.0,85900.0,0.004]
[1765822647463,1.62781,85901.0,85900.0,1e-07]
[1765822647762,0.7086526,85893.0,85892.0,0.01859564]
[1765822648058,0.7086526,85893.0,85870.0,0.56905]
[1765822648059,0.69701,85859.0,85854.0,0.10444835]
[1765822648276,0.8786572,85859.0,85848.0,0.10444835]
[1765822648558,0.8786572,85859.0,85835.0,0.3608]
[1765822648559,0.7086599,85839.0,85838.0,0.66675]
[1765822648762,0.7086607,85833.0,85832.0,0.10444835]
[1765822649054,0.69701,85831.0,85830.0,0.10444835]
[1765822649257,0.7086611,85830.0,85829.0,0.10444835]
[1765822649464,0.87701,85830.0,85829.0,0.66675]
[1765822649647,0.87701,85830.0,85829.0,0.77119835]
[1765822649960,0.87701,85830.0,85829.0,0.66675]
[1765822650166,0.18,85830.0,85829.0,0.66675]
[1765822650357,0.18,85830.0,85829.0,0.77107877]
[1765822650665,0.18,85830.0,85829.0,0.66675]
[1765822650858,0.18,85830.0,85829.0,0.66875]
[1765822651059,0.176,85830.0,85829.0,0.66875]
[1765822651954,0.176,85830.0,85829.0,1.03055]
[1765822652252,0.176,85830.0,85829.0,1.13484739]
[1765822652460,0.176,85830.0,85829.0,1.03055]
[1765822652657,0.176,85830.0,85829.0,1.13484739]
[1765822653454,0.176,85830.0,85829.0,1.03055]
[1765822653655,0.176,85830.0,85829.0,1.13484739]
[1765822653861,0.176,85830.0,85829.0,1.03055]
[1765822656863,0.83851,85830.0,85829.0,0.3638]
[1765822657060,0.83851,85830.0,85829.0,0.35565]
[1765822657562,0.83851,85830.0,85829.0,0.70652]
[1765822657760,0.511,85830.0,85829.0,0.70652]
[1765822657962,0.83851,85830.0,85829.0,0.70652]
[1765822658965,0.511,85830.0,85829.0,0.70652]
[1765822659171,0.176,85830.0,85829.0,0.70652]
[1765822662568,0.51027,85830.0,85829.0,0.70652]
[1765822662776,0.176,85830.0,85829.0,0.70652]
[1765822663467,0.25,85843.0,85840.0,0.9181298]
[1765822663776,0.16017473,85841.0,85840.0,1.2789298]
[1765822664377,0.82195473,85841.0,85840.0,0.10425499]
[1765822664574,0.82195473,85841.0,85833.0,0.3608]
[1765822664575,0.6734303,85836.0,85835.0,0.10425499]
[1765822664875,0.8634303,85836.0,85835.0,0.10425499]
[1765822665873,0.8634303,85836.0,85835.0,0.10525499]
[1765822666272,0.8644303,85836.0,85835.0,0.10525499]
[1765822666573,0.8644303,85836.0,85835.0,0.001]
[1765822668464,0.6734318,85825.0,85824.0,0.00017473]
[1765822668666,0.8634318,85825.0,85824.0,0.00017473]
[1765822669271,0.8634318,85825.0,85824.0,0.01881945]
[1765822669570,0.8634318,85825.0,85824.0,0.02281945]
[1765822670077,0.85178,85825.0,85824.0,0.92929945]
[1765822670576,0.85178,85825.0,85824.0,0.02281945]
[1765822670971,0.85178,85825.0,85824.0,0.92929945]
[1765822672287,0.19,85825.0,85824.0,0.92929945]
[1765822673177,0.7326,85836.0,85824.0,0.92929945]
[1765822673178,0.7326,85836.0,85835.0,0.7151704]
[1765822673368,1.23687,85836.0,85835.0,0.7151704]
[1765822673682,0.66178,85833.0,85832.0,0.0116508]
[1765822673870,0.83178,85833.0,85832.0,0.7151708]
[1765822674968,0.17,85833.0,85832.0,0.86138969]
[1765822675373,0.83178,85833.0,85832.0,0.7161708]
[1765822675976,0.83178,85833.0,85832.0,0.3653008]
[1765822676177,0.83178,85833.0,85832.0,0.50001469]
[1765822676484,0.83178,85833.0,85832.0,0.0126508]
[1765822676980,0.83178,85833.0,85832.0,0.7161708]
[1765822677375,0.17,85833.0,85832.0,0.7161708]
[1765822677984,0.83178,85833.0,85832.0,0.7161708]
[1765822678482,0.50427,85833.0,85832.0,0.7161708]
[1765822679387,0.38402895,85833.0,85832.0,0.7161708]
[1765822680188,0.1,85833.0,85832.0,0.7161708]
[1765822680689,0.76178,85833.0,85832.0,0.7161708]
[1765822684282,0.1,85833.0,85832.0,0.7161708]
[1765822684485,0.00017473,85841.0,85832.0,0.7161708]
[1765822684486,0.00017473,85841.0,85840.0,0.6765798]
[1765822684683,0.84378473,85841.0,85840.0,0.6765798]
[1765822685799,0.84378473,85841.0,85840.0,0.0116498]
[1765822686485,0.67361,85833.0,85832.0,0.6785808]
[1765822686688,0.84361,85833.0,85832.0,0.002]
[1765822687076,0.00217473,85841.0,85840.0,0.6765798]
[1765822687277,0.17217473,85841.0,85840.0,1.0373798]
[1765822687477,0.84678473,85841.0,85840.0,1.0373798]
[1765822687689,0.84678473,85841.0,85840.0,0.3724498]
[1765822687873,0.6852607,85833.0,85832.0,1.4091808]
[1765822688075,0.67361,85832.0,85831.0,0.20810162]
[1765822688281,0.85361,85832.0,85831.0,0.20810162]
[1765822688679,0.67361,85825.0,85824.0,0.22177945]
[1765822688889,0.18,85825.0,85824.0,0.89836135]
[1765822689190,0.51441,85825.0,85824.0,0.89836135]
[1765822689392,0.85361,85825.0,85824.0,0.89836135]
[1765822690589,0.51441,85825.0,85824.0,0.89836135]
[1765822690975,0.85361,85825.0,85824.0,0.02081945]
[1765822691182,0.85361,85825.0,85824.0,0.02181945]
[1765822693476,0.85361,85825.0,85824.0,0.68674945]
[1765822693684,0.85361,85825.0,85824.0,0.69840135]
[1765822694782,0.85361,85825.0,85824.0,0.69540135]
[1765822694989,0.85461,85825.0,85824.0,0.69540135]
[1765822695393,0.51541,85825.0,85824.0,0.69540135]
[1765822695791,0.85461,85825.0,85824.0,0.69540135]
[1765822697897,0.001,85825.0,85824.0,0.69540135]
[1765822698088,0.101,85825.0,85824.0,0.69540135]
[1765822698294,0.0774706,85825.0,85824.0,0.69540135]
[1765822698492,0.95361,85838.0,85837.0,0.0116502]
[1765822698690,0.67361,85834.0,85833.0,0.87489]
[1765822698991,0.85361,85834.0,85833.0,0.87489]
[1765822699197,0.51441,85834.0,85833.0,0.8865407]
[1765822699793,0.85361,85834.0,85833.0,0.8865407]
[1765822699995,0.18,85834.0,85833.0,0.8865407]
[1765822700808,0.00017473,85841.0,85840.0,0.6765798]
[1765822700997,0.17017473,85841.0,85840.0,1.0373798]
[1765822701200,0.84378473,85841.0,85840.0,0.3496398]
[1765822701598,0.67361,85838.0,85837.0,1.0373801]
[1765822701790,0.17,85838.0,85837.0,1.0373801]
[1765822702992,0.171,85838.0,85837.0,1.0373801]
[1765822703783,0.172,85838.0,85837.0,1.0373801]
[1765822704389,0.171,85838.0,85837.0,1.0373801]
[1765822704996,0.172,85838.0,85837.0,1.0373801]
[1765822705595,0.171,85838.0,85837.0,1.0373801]
[1765822706190,0.84461,85838.0,85837.0,1.0373801]
[1765822706385,0.011651,85832.0,85830.0,0.3608]
[1765822706595,0.67361,85831.0,85830.0,0.3608]
[1765822706794,0.87361,85831.0,85830.0,0.3608]
[1765822707001,0.6852618,85825.0,85824.0,0.01881945]
[1765822707205,0.8852618,85825.0,85824.0,0.01881945]
[1765822708287,0.8852618,85825.0,85824.0,0.02081945]
[1765822708698,0.8852618,85825.0,85824.0,0.01881945]
[1765822709200,0.8852618,85825.0,85824.0,0.01981945]
[1765822709498,1.2460618,85825.0,85824.0,0.00117473]
[1765822709890,1.2470618,85825.0,85824.0,0.00017473]
[1765822710187,0.7012926,85819.0,85818.0,0.00233053]
[1765822710389,1.6338926,85819.0,85818.0,0.00233053]
[1765822711595,1.6338926,85819.0,85818.0,0.00333053]
[1765822717506,1.6338926,85819.0,85818.0,0.68127053]
[1765822717801,1.6340126,85819.0,85818.0,0.68127053]
[1765822718002,1.6340126,85819.0,85818.0,0.00333053]
[1765822718395,1.6671685,85819.0,85818.0,0.00333053]
[1765822719102,1.6681685,85819.0,85818.0,0.00333053]
[1765822719905,1.6681685,85819.0,85818.0,0.00233053]
[1765822720102,1.6691685,85819.0,85818.0,0.00233053]
[1765822724608,1.6691685,85819.0,85810.0,0.00017473]
[1765822724609,0.6909837,85811.0,85810.0,0.00017473]
[1765822724810,1.9976596,85811.0,85810.0,0.00017473]
[1765822725311,1.9976596,85811.0,85810.0,0.0189106]
[1765822725510,1.9976596,85811.0,85810.0,0.00017473]
[1765822725709,1.9645037,85811.0,85810.0,0.00017473]
[1765822725907,1.9645037,85811.0,85810.0,0.69684296]
[1765822726105,1.9645037,85811.0,85810.0,0.67811473]
[1765822726300,1.2317837,85811.0,85810.0,0.67811473]
[1765822726503,1.9645037,85811.0,85810.0,0.67811473]
[1765822726708,1.9645037,85811.0,85810.0,0.69764486]
[1765822727512,1.9645037,85811.0,85810.0,0.01970486]
[1765822728308,0.91272,85811.0,85810.0,0.69764486]
[1765822728510,0.18,85811.0,85810.0,0.69764486]
[1765822729110,0.1798252,85811.0,85810.0,0.69764486]
[1765822729312,0.8591552,85811.0,85810.0,0.69764486]
[1765822730013,0.1798252,85811.0,85810.0,0.69764486]
[1765822731013,0.8708089,85811.0,85810.0,0.01970486]
[1765822731207,1.6035689,85811.0,85810.0,0.01970486]
[1765822733009,1.63680814,85811.0,85810.0,0.01970486]
[1765822733214,0.6909851,85801.0,85800.0,0.00010457]
[1765822733517,0.19,85801.0,85800.0,0.67804457]
[1765822733712,0.19,85801.0,85800.0,0.69714638]
[1765822734316,0.53319,85801.0,85800.0,0.69914638]
[1765822735615,0.53319,85801.0,85800.0,0.70114638]
[1765822737008,0.19,85801.0,85800.0,0.70114638]
[1765822740216,1.4237429,85817.0,85816.0,0.20548]
[1765822740418,1.62707081,85817.0,85816.0,0.88342]
[1765822741017,0.6909836,85812.0,85811.0,1.03874]
[1765822741222,0.89431151,85812.0,85811.0,1.03874]
[1765822741612,0.20332791,85812.0,85811.0,1.03874]
[1765822741814,0.88490791,85812.0,85811.0,1.03874]
[1765822742218,0.20332791,85812.0,85811.0,1.03874]
[1765822742415,0.87183791,85812.0,85811.0,1.03874]
[1765822742922,0.53344791,85812.0,85811.0,1.0503937]
[1765822743416,0.17,85812.0,85811.0,1.0503937]
[1765822743621,0.3608,85829.0,85818.0,0.6844128]
[1765822743920,0.8618251,85819.0,85818.0,1.0452128]
[1765822745015,0.8628251,85819.0,85818.0,1.0452128]
[1765822745418,0.5244351,85819.0,85818.0,1.0452128]
[1765822745622,0.8638251,85819.0,85818.0,1.0452128]
[1765822747320,0.83068473,85819.0,85818.0,0.67276]
[1765822747618,0.66851,85817.0,85816.0,0.54504]
[1765822747825,0.85851,85817.0,85816.0,0.87906]
[1765822748325,0.52012,85817.0,85816.0,0.87906]
[1765822748715,0.52112,85817.0,85816.0,0.87906]
[1765822749024,0.52212,85817.0,85816.0,0.87906]
[1765822750419,0.182,85817.0,85816.0,0.87906]
[1765822751528,0.02,85830.0,85824.0,0.2063]
[1765822751820,0.3417701,85838.0,85837.0,0.67276]
[1765822752011,0.91321549,85838.0,85837.0,0.67276]
[1765822754118,0.23305539,85838.0,85837.0,0.67276]
[1765822754318,0.23505539,85838.0,85837.0,0.67276]
[1765822754633,0.23805539,85838.0,85837.0,0.67276]
[1765822755125,0.09805539,85838.0,85837.0,0.67276]
[1765822755326,0.03705539,85838.0,85837.0,0.67276]
[1765822755523,0.20505539,85838.0,85837.0,0.67276]
[1765822756232,0.20405539,85838.0,85837.0,0.67276]
[1765822756428,0.20505539,85838.0,85837.0,0.67276]
[1765822756930,0.042,85838.0,85837.0,1.40532]
[1765822757425,0.192,85838.0,85837.0,1.40532]
[1765822757615,0.191,85838.0,85837.0,1.40532]
[1765822757819,0.00017473,85846.0,85845.0,0.67276]
[1765822758017,0.1229165,85846.0,85845.0,1.03356]
[1765822758527,0.1229165,85846.0,85845.0,1.0452091]
[1765822759432,0.09017473,85846.0,85845.0,1.0452091]
[1765822760319,0.09017473,85846.0,85845.0,1.7776891]
[1765822760729,0.09117473,85846.0,85845.0,1.7776891]
[1765822761425,0.09117473,85846.0,85845.0,1.80665703]
[1765822761824,0.09017473,85846.0,85845.0,1.80765703]
[1765822764330,4.73e-06,85846.0,85845.0,1.80765703]
[1765822764726,0.6801577,85856.0,85855.0,0.6844077]
[1765822764932,0.8601577,85856.0,85855.0,0.3608]
[1765822765120,0.8601577,85856.0,85855.0,1.03356]
[1765822765627,0.8601577,85856.0,85855.0,0.3608]
[1765822765819,0.8621577,85856.0,85855.0,0.3608]
[1765822766317,0.66851,85848.0,85847.0,0.00017473]
[1765822766521,0.84851,85848.0,85847.0,0.00017473]
[1765822767325,0.85051,85848.0,85847.0,0.00017473]
[1765822767531,0.85051,85848.0,85847.0,0.67293473]
[1765822767829,0.85051,85848.0,85847.0,0.00017473]
[1765822767830,0.92736,85848.0,85847.0,0.00017473]
[1765822768030,0.92936,85848.0,85847.0,0.00017473]
[1765822768234,0.93236,85848.0,85847.0,0.00017473]
[1765822769728,1.29316,85848.0,85847.0,0.00017473]
[1765822770040,0.66851,85833.0,85832.0,0.54504]
[1765822770233,0.84851,85833.0,85832.0,0.54504]
[1765822770638,0.84851,85833.0,85832.0,0.87906]
[1765822770829,0.8601607,85833.0,85832.0,0.87906]
[1765822771031,0.8601607,85833.0,85832.0,0.88006]
[1765822771530,0.84851,85833.0,85832.0,0.88006]
[1765822771835,0.84851,85833.0,85832.0,0.2073]
[1765822772028,0.85051,85833.0,85832.0,0.55686]
[1765822772230,0.85051,85833.0,85832.0,0.89498]
[1765822773340,0.85151,85833.0,85832.0,0.89398]
[1765822774845,0.7008,85830.0,85826.0,0.0116516]
[1765822775144,0.8708,85830.0,85829.0,0.71036]
[1765822775944,0.8708,85830.0,85829.0,0.3608]
[1765822776744,0.8708,85830.0,85829.0,0.71036]
[1765822776944,0.8708,85830.0,85829.0,1.0601313]
[1765822777134,0.8718,85830.0,85829.0,1.0601313]
[1765822781947,0.001,85830.0,85829.0,1.4209313]
[1765822782152,0.00017473,85841.0,85840.0,0.6993298]
[1765822782458,0.17017473,85841.0,85840.0,1.0601298]
[1765822783657,0.14017473,85841.0,85840.0,1.0601298]
[1765822784446,0.12146983,85841.0,85840.0,1.0601298]
[1765822785749,0.12146983,85841.0,85840.0,1.0611298]
[1765822786350,0.00017473,85849.0,85848.0,0.9112787]
[1765822786551,0.18017473,85849.0,85848.0,1.2720787]
[1765822786944,0.88097473,85849.0,85848.0,1.2720787]
[1765822788062,0.52904473,85849.0,85848.0,1.2720787]
[1765822788358,0.18017473,85849.0,85848.0,1.2720787]
[1765822789154,0.18017473,85849.0,85848.0,1.36331009]
[1765822789349,0.18017473,85849.0,85848.0,1.36431009]
[1765822789959,0.18017473,85849.0,85848.0,1.36531009]
[1765822790453,0.00017473,85849.0,85848.0,1.36531009]
[1765822790760,0.17017473,85849.0,85848.0,1.36531009]
[1765822790950,0.87097473,85849.0,85848.0,1.36531009]
[1765822791156,0.87097473,85849.0,85848.0,1.2740787]
[1765822792149,0.87097473,85849.0,85848.0,1.2730787]
[1765822792350,0.87197473,85849.0,85848.0,1.2730787]
[1765822792551,0.17117473,85849.0,85848.0,1.2720787]
[1765822793553,0.52004473,85849.0,85848.0,1.2720787]
[1765822793859,0.87197473,85849.0,85848.0,1.26043]
[1765822795255,0.17117473,85849.0,85848.0,1.26043]
[1765822796052,0.87197473,85849.0,85848.0,0.92231]
[1765822796656,0.87197473,85849.0,85848.0,1.26043]
[1765822797067,0.87197473,85849.0,85848.0,1.2720787]
[1765822798066,0.87197473,85849.0,85848.0,0.3608]
[1765822798380,0.87297473,85849.0,85848.0,1.26043]
[1765822798756,0.87197473,85849.0,85848.0,1.26043]
[1765822799069,0.87297473,85849.0,85848.0,1.26043]
[1765822799255,0.87397473,85849.0,85848.0,1.26043]
[1765822799568,0.87297473,85849.0,85848.0,1.26043]
[1765822799750,0.87497473,85849.0,85848.0,1.26043]
[1765822800463,0.7124496,85841.0,85840.0,1.26043]
[1765822800659,0.8924496,85841.0,85840.0,1.26043]
[1765822800869,0.8808,85841.0,85840.0,1.26043]
[1765822801366,0.18,85841.0,85840.0,1.26043]
[1765822801562,0.181,85841.0,85840.0,1.26043]
[1765822801869,0.191,85841.0,85840.0,1.26043]
[1765822802457,0.001,85841.0,85840.0,1.26043]
[1765822802653,0.8724396,85841.0,85840.0,1.26043]
[1765822802855,0.86079,85841.0,85840.0,1.26043]
[1765822804258,0.86079,85841.0,85840.0,0.3608]
[1765822804457,0.85979,85841.0,85840.0,0.3608]
[1765822804660,0.50763,85841.0,85840.0,1.25524]
[1765822805168,0.171,85841.0,85840.0,1.25524]
[1765822806872,0.86079,85841.0,85840.0,0.31842215]
[1765822807070,0.7014418,85825.0,85824.0,0.00017473]
[1765822807260,0.8714418,85825.0,85824.0,0.00017473]
[1765822808162,0.8714418,85825.0,85824.0,0.20396473]
[1765822808362,0.85979,85825.0,85824.0,0.90826663]
[1765822808567,0.3608,85831.0,85824.0,0.90826663]
[1765822808568,0.68979,85831.0,85830.0,0.69065]
[1765822808769,0.88979,85831.0,85830.0,0.69065]
[1765822809163,0.2,85831.0,85830.0,1.05145]
[1765822809768,0.53763,85831.0,85830.0,1.05145]
[1765822810163,0.88979,85831.0,85830.0,1.05145]
[1765822810475,0.88979,85831.0,85830.0,1.05245]
[1765822810767,0.2,85831.0,85830.0,1.05345]
[1765822812467,0.73208,85836.0,85835.0,0.7023004]
[1765822812673,0.93208,85836.0,85835.0,0.7023004]
[1765822812872,0.2,85836.0,85835.0,0.7023004]
[1765822813772,0.2,85836.0,85835.0,0.7033004]
[1765822813977,0.53763,85836.0,85835.0,0.7033004]
[1765822815673,0.2,85836.0,85835.0,0.7033004]
[1765822816180,0.88979,85836.0,85835.0,0.7033004]
[1765822816860,0.88979,85836.0,85835.0,0.001]
[1765822819072,1.62191,85836.0,85835.0,0.001]
[1765822819973,1.62191,85836.0,85824.0,0.20396473]
[1765822819974,0.7014418,85825.0,85824.0,0.36097473]
[1765822820178,0.7014429,85817.0,85810.0,0.16297486]
[1765822820376,0.701444,85809.0,85808.0,0.89444]
[1765822820575,0.861444,85809.0,85808.0,0.89444]
[1765822820770,0.84979,85809.0,85808.0,0.89444]
[1765822822478,0.84979,85809.0,85808.0,0.89844]
[1765822822670,0.16,85809.0,85808.0,0.89844]
[1765822822876,0.00017473,85817.0,85816.0,0.702303]
[1765822823184,0.3492797,85841.0,85840.0,0.69065]
[1765822823474,0.7014406,85834.0,85833.0,0.20379]
[1765822823674,0.88979,85834.0,85833.0,0.89444]
[1765822823881,0.2,85834.0,85833.0,0.89444]
[1765822824275,0.0116486,85849.0,85848.0,0.69065]
[1765822824476,0.5492786,85849.0,85848.0,0.69065]
[1765822824669,0.9014386,85849.0,85848.0,0.69065]
[1765822824877,0.2,85849.0,85848.0,0.69065]
[1765822825271,0.88979,85849.0,85848.0,0.71537]
[1765822825472,0.88979,85849.0,85848.0,1.05145]
[1765822825668,0.2,85849.0,85848.0,1.05145]
[1765822826281,0.89179,85849.0,85848.0,1.05145]
[1765822826674,0.89379,85849.0,85848.0,1.05145]
[1765822826878,0.0116492,85844.0,85842.0,0.0116495]
[1765822827173,0.68979,85843.0,85842.0,0.69065]
[1765822827382,0.85979,85843.0,85842.0,0.69065]
[1765822827985,0.17,85843.0,85842.0,0.69065]
[1765822828180,0.8714394,85843.0,85841.0,0.3724495]
[1765822828482,0.8714394,85843.0,85842.0,0.69065]
[1765822830273,0.8724394,85843.0,85842.0,0.69065]
[1765822830582,0.86079,85843.0,85842.0,0.69065]
[1765822830982,0.50863,85843.0,85842.0,0.69065]
[1765822831473,0.171,85843.0,85842.0,0.69065]
[1765822831876,0.17,85856.0,85855.0,0.6924777]
[1765822832073,0.2,85856.0,85855.0,0.6924777]
[1765822832772,0.85872,85856.0,85855.0,0.68083]
[1765822833080,0.204,85856.0,85855.0,0.68083]
[1765822833485,0.53092,85856.0,85855.0,0.68083]
[1765822833688,0.53092,85856.0,85853.0,0.3608]
[1765822833689,0.65872,85854.0,85853.0,0.3608]
[1765822833995,0.65872,85841.0,85840.0,0.00017473]
[1765822834284,1.20952,85841.0,85840.0,0.00017473]
[1765822835077,1.94152,85841.0,85840.0,0.00017473]
[1765822836491,1.21152,85841.0,85840.0,0.68100473]
[1765822839091,1.21152,85841.0,85840.0,0.00017473]
[1765822839292,0.5528,85841.0,85840.0,0.88246473]
[1765822840086,0.192,85841.0,85840.0,0.88246473]
[1765822840289,0.002,85841.0,85840.0,0.88246473]
[1765822840491,0.4208,85854.0,85846.0,0.0116488]
[1765822840795,0.5408,85854.0,85853.0,0.692478]
[1765822841208,0.18,85854.0,85853.0,0.692478]
[1765822841504,0.181,85854.0,85853.0,0.692478]
[1765822842406,0.18,85854.0,85853.0,0.692478]
[1765822845606,0.18,85854.0,85853.0,0.693478]
[1765822846011,0.18,85854.0,85853.0,0.692478]
[1765822849705,0.00017473,85857.0,85856.0,0.6924776]
[1765822849907,0.17017473,85857.0,85856.0,0.6924776]
[1765822850105,0.82889473,85857.0,85856.0,0.6924776]
[1765822851225,0.50009473,85857.0,85856.0,0.6924776]
[1765822851425,0.17117473,85857.0,85856.0,0.6934776]
[1765822852115,0.17217473,85857.0,85856.0,0.6924776]
[1765822852517,0.17117473,85857.0,85856.0,0.6924776]
[1765822852711,0.17017473,85857.0,85856.0,0.6934776]
[1765822853617,0.49909473,85857.0,85856.0,0.6934776]
[1765822854120,0.17017473,85857.0,85856.0,0.6924776]
[1765822855214,0.1,85870.0,85856.0,0.6924776]
[1765822855215,0.3608,85875.0,85874.0,0.6924752]
[1765822855411,0.58469465,85875.0,85874.0,0.6924752]
[1765822855724,0.55281465,85875.0,85874.0,0.6924752]
[1765822855919,0.88261465,85875.0,85874.0,0.6924752]
[1765822856423,0.87096965,85875.0,85874.0,0.71268558]
[1765822856620,0.21224965,85875.0,85874.0,0.71268558]
[1765822856822,0.87096965,85875.0,85874.0,0.71268558]
[1765822857513,0.87396965,85875.0,85874.0,0.71268558]
[1765822858223,0.21524965,85875.0,85874.0,0.71268558]
[1765822858715,0.21424965,85875.0,85874.0,0.71268558]
[1765822858911,0.21324965,85875.0,85874.0,0.71268558]
[1765822859118,0.21424965,85875.0,85874.0,0.71268558]
[1765822859619,0.87296965,85875.0,85874.0,0.71268558]
[1765822859817,0.54316965,85875.0,85874.0,0.71268558]
[1765822860224,0.54216965,85875.0,85874.0,0.71268558]
[1765822860825,0.54116965,85875.0,85874.0,0.71268558]
[1765822861022,0.87096965,85875.0,85874.0,0.70104038]
[1765822861414,0.21224965,85875.0,85874.0,0.70104038]
[1765822861613,0.54116965,85875.0,85874.0,0.70104038]
[1765822861821,0.87096965,85875.0,85874.0,0.70104038]
[1765822862529,1.23276965,85875.0,85874.0,0.02021038]
[1765822862714,0.68133,85868.0,85867.0,0.708716]
[1765822863020,1.27602565,85868.0,85867.0,0.01944816]
[1765822863219,1.27602565,85868.0,85866.0,0.00017473]
[1765822863420,0.71357965,85867.0,85866.0,0.01985597]
[1765822863624,0.88357965,85867.0,85866.0,0.00017473]
[1765822864219,0.0116463,85866.0,85855.0,0.0116476]
[1765822864416,0.68133,85856.0,85855.0,0.0116476]
[1765822864618,0.85133,85856.0,85855.0,0.0116476]
[1765822864822,0.85133,85856.0,85855.0,0.3644176]
[1765822865123,0.68133,85854.0,85852.0,0.0116481]
[1765822865325,0.68133,85854.0,85840.0,0.20699]
[1765822865326,0.6929789,85846.0,85845.0,1.05804473]
[1765822865526,0.85133,85846.0,85845.0,1.06969383]
[1765822865713,0.3608,85854.0,85845.0,1.06969383]
[1765822865714,1.04213,85854.0,85853.0,0.708718]
[1765822865914,0.5308,85854.0,85853.0,0.708718]
[1765822866310,0.3608,85854.0,85853.0,0.708718]
[1765822866511,0.5308,85854.0,85853.0,0.708718]
[1765822867023,1.20213,85854.0,85853.0,0.708718]
[1765822867211,1.20213,85854.0,85853.0,0.709718]
[1765822867418,0.4908,85854.0,85853.0,0.709718]
[1765822867628,0.83969,85854.0,85853.0,0.710718]
[1765822867824,1.17213,85854.0,85853.0,0.710718]
[1765822872132,1.17213,85854.0,85853.0,0.002]
[1765822872434,0.68133,85846.0,85845.0,0.02029326]
[1765822872628,1.2537789,85846.0,85845.0,0.02029326]
[1765822873224,1.2537789,85846.0,85845.0,0.01866006]
[1765822873423,0.68133,85830.0,85829.0,0.0116512]
[1765822873633,0.68133,85825.0,85824.0,0.9157119]
[1765822873829,0.3317545,85830.0,85829.0,0.7087213]
[1765822874028,0.8429445,85830.0,85829.0,0.7087213]
[1765822874518,0.8429445,85830.0,85829.0,0.7137213]
[1765822874725,0.8429445,85830.0,85829.0,0.73155038]
[1765822875035,0.33119,85830.0,85829.0,0.73155038]
[1765822875232,0.52119,85830.0,85829.0,0.73555038]
[1765822875430,0.85238,85830.0,85829.0,0.73555038]
[1765822877141,0.85238,85830.0,85829.0,0.72389908]
[1765822877722,0.85238,85830.0,85829.0,0.02682908]
[1765822878827,1.21318,85830.0,85829.0,0.009]
[1765822879333,1.21518,85830.0,85829.0,0.005]
[1765822879722,1.94694,85830.0,85829.0,0.005]
[1765822879928,1.94694,85830.0,85821.0,0.00017473]
[1765822879929,0.6740322,85822.0,85821.0,0.00017473]
[1765822880128,1.2248322,85822.0,85821.0,0.00017473]
[1765822880329,1.2248322,85822.0,85821.0,0.01793422]
[1765822880630,1.2248322,85822.0,85821.0,0.00017473]
[1765822881130,0.6676926,85819.0,85818.0,5.26e-06]
[1765822881330,0.6272949,85802.0,85801.0,0.14665388]
[1765822881531,0.61564,85801.0,85797.0,0.20699]
[1765822881730,0.79564,85801.0,85797.0,0.20699]
[1765822882126,0.79564,85801.0,85800.0,0.01794573]
[1765822882330,0.79564,85801.0,85800.0,0.00010457]
[1765822882531,0.79564,85801.0,85800.0,0.01852646]
[1765822883740,0.79564,85801.0,85800.0,0.01952646]
[1765822883932,0.79564,85801.0,85800.0,0.02152646]
[1765822885443,0.79564,85801.0,85800.0,0.00310457]
[1765822885642,0.79564,85801.0,85785.0,0.14665388]
[1765822885643,0.60944,85786.0,85785.0,0.14665388]
[1765822885942,1.5214,85786.0,85785.0,0.14665388]
[1765822886334,1.5330571,85786.0,85785.0,0.01798921]